bitfinex/quotes_ETHUSD_20250731
["timestamp","ask_amount","ask_price","bid_price","bid_amount"]
[1753985686328,0.002,3759.6,3759.5,0.84373282]
[1753985686521,2.66003394,3759.4,3758.9,4.26]
[1753985686708,2.66020714,3759.2,3759.1,4.559]
[1753985687019,2.66014451,3759.2,3758.8,0.6032]
[1753985687225,2.66021498,3759.1,3758.9,5.1612]
[1753985687424,0.1328,3759.0,3758.9,5.1612]
[1753985687794,0.1328,3759.0,3758.9,5.6064]
[1753985688524,0.1328,3759.0,3758.9,7.42513012]
[1753985688703,0.1328,3759.0,3758.9,5.6064]
[1753985689109,0.1328,3759.0,3758.9,8.26675276]
[1753985689520,0.1328,3759.0,3758.9,5.6064]
[1753985689838,0.1328,3759.0,3758.9,1.0484]
[1753985690125,2.79309649,3759.0,3758.9,4.556]
[1753985690325,0.1328,3759.0,3758.9,4.556]
[1753985690534,0.1328,3759.0,3758.9,5.1592]
[1753985692395,0.1328,3759.0,3758.9,6.38636781]
[1753985692628,0.1328,3759.3,3759.0,2.66023827]
[1753985692848,0.1328,3759.3,3759.2,2.66014045]
[1753985693006,0.1328,3759.3,3759.1,9.8634]
[1753985693322,0.1328,3759.3,3759.2,3.70854045]
[1753985693526,0.002,3759.6,3759.3,2.66006861]
[1753985693738,0.002,3759.6,3759.4,8.814]
[1753985694109,0.002,3759.6,3759.5,3.70832818]
[1753985694504,0.002,3759.6,3759.4,4.3928]
[1753985694697,0.002,3759.6,3759.4,4.26]
[1753985694923,2.66186973,3759.6,3759.4,4.26]
[1753985695123,2.65992818,3759.5,3759.4,4.26]
[1753985695326,2.65992818,3759.5,3759.4,8.813]
[1753985695643,3.35935312,3759.5,3759.4,8.813]
[1753985696008,4.03245312,3759.5,3759.4,4.26]
[1753985696212,2.66052891,3758.7,3758.4,3.0]
[1753985696427,2.66014045,3759.2,3758.2,4.26]
[1753985696735,2.66065723,3758.5,3758.3,4.552]
[1753985696932,2.66050614,3758.7,3758.3,4.552]
[1753985696933,2.66070668,3758.4,3758.3,4.552]
[1753985697136,2.66070668,3758.4,3758.3,5.1552]
[1753985697527,9.03419165,3758.8,3758.1,0.001]
[1753985697696,2.66084827,3758.2,3758.1,0.001]
[1753985697913,2.66084827,3758.2,3758.1,4.552]
[1753985698761,2.66079069,3758.3,3758.1,4.552]
[1753985698946,2.66078868,3758.3,3758.1,4.552]
[1753985699957,2.66073088,3758.4,3758.1,4.552]
[1753985700132,2.66078743,3758.3,3758.1,4.552]
[1753985700329,2.6608474,3758.3,3758.1,0.001]
[1753985700556,2.66040901,3758.9,3758.1,0.001]
[1753985700557,2.6605651,3758.6,3758.1,0.001]
[1753985700761,2.66078461,3758.3,3758.2,4.549]
[1753985701361,2.66084827,3758.2,3758.1,0.001]
[1753985701555,2.66084827,3758.2,3758.1,4.55]
[1753985701759,0.33336651,3758.5,3758.1,0.001]
[1753985701930,3.0,3759.1,3758.1,0.001]
[1753985701931,2.66084827,3758.2,3758.1,0.001]
[1753985702474,3.06604827,3758.2,3758.1,0.001]
[1753985702615,2.66084827,3758.2,3758.1,0.001]
[1753985703667,2.69410887,3758.2,3758.1,0.001]
[1753985703824,2.66084827,3758.2,3758.1,0.001]
[1753985704030,0.50723056,3758.2,3758.1,0.001]
[1753985704227,2.66084827,3758.2,3758.1,0.001]
[1753985704728,2.79364827,3758.2,3758.1,0.001]
[1753985705457,0.1328,3758.2,3758.1,0.001]
[1753985705663,0.1328,3758.2,3758.1,1.0494]
[1753985705852,2.6603981,3758.9,3758.1,3.71026374]
[1753985706047,3.0,3759.3,3758.2,1.0484]
[1753985706279,0.1328,3758.3,3758.1,0.001]
[1753985706578,2.79357747,3758.3,3758.2,4.545]
[1753985706882,2.79357747,3758.3,3758.1,0.001]
[1753985706883,2.66084827,3758.2,3758.1,0.001]
[1753985707073,3.09930887,3758.2,3758.1,0.001]
[1753985707235,3.36720887,3758.2,3758.1,0.001]
[1753985707630,2.66084827,3758.2,3758.1,0.001]
[1753985708129,3.33394827,3758.2,3758.1,0.001]
[1753985708334,4.58222001,3758.2,3758.1,0.001]
[1753985708771,4.17702001,3758.2,3758.1,0.001]
[1753985708945,4.21028061,3758.2,3758.1,0.001]
[1753985709871,4.17702001,3758.2,3758.1,0.001]
[1753985710535,2.66084827,3758.2,3758.1,0.001]
[1753985710972,2.69410887,3758.2,3758.1,0.001]
[1753985711181,3.36720887,3758.2,3758.1,0.001]
[1753985711880,3.36720887,3758.2,3758.1,1e-08]
[1753985711881,3.91720887,3758.2,3758.1,1e-08]
[1753985712041,8.42494827,3758.2,3758.1,1e-08]
[1753985712243,10.45017193,3758.2,3758.1,1e-08]
[1753985712467,13.45017193,3758.2,3758.1,1e-08]
[1753985712673,2.66106069,3757.9,3757.8,1e-08]
[1753985712868,2.66106069,3757.9,3757.7,0.001]
[1753985712869,6.21113151,3757.8,3757.7,1e-08]
[1753985713172,6.21113151,3757.8,3756.0,0.6032]
[1753985713173,0.55,3757.6,3756.0,0.6032]
[1753985713373,2.6624777,3755.9,3755.8,0.4452]
[1753985713575,2.66261948,3755.7,3755.6,4.68001095]
[1753985713878,9.03419165,3756.4,3755.6,5.12521095]
[1753985714078,9.03419165,3756.4,3755.7,0.6032]
[1753985714263,2.66251777,3755.9,3755.7,0.6032]
[1753985714470,2.66254859,3755.8,3755.7,0.6032]
[1753985714641,2.66254859,3755.8,3755.7,0.4452]
[1753985714843,2.66249991,3755.9,3755.7,0.4452]
[1753985715186,2.66252877,3755.9,3755.7,1.0484]
[1753985715379,2.66252877,3755.9,3755.7,0.4452]
[1753985715583,2.66254859,3755.8,3755.7,0.4452]
[1753985715876,11.69635798,3756.4,3755.3,0.4452]
[1753985716181,0.55,3756.2,3755.2,0.5652]
[1753985716353,2.6626591,3755.7,3755.2,0.5652]
[1753985716559,9.03419165,3755.8,3755.3,0.5652]
[1753985716867,9.93761082,3755.8,3754.9,1.0368]
[1753985717088,9.03419165,3755.3,3754.0,0.4716]
[1753985717379,9.03419165,3755.3,3754.2,0.5652]
[1753985717380,9.03419165,3754.8,3754.2,0.5652]
[1753985718102,3.55,3755.7,3754.4,2.66348266]
[1753985718260,9.03419165,3755.3,3754.4,0.5652]
[1753985718460,3.55,3755.7,3754.0,4.538]
[1753985718461,3.0,3755.7,3754.5,1.0368]
[1753985718691,4.538,3756.2,3755.4,2.66276701]
[1753985718983,4.538,3756.2,3754.7,2.66332862]
[1753985718984,4.538,3756.1,3755.1,0.4716]
[1753985719155,4.538,3756.1,3755.0,4.538]
[1753985719156,2.66275129,3755.6,3755.0,0.5652]
[1753985719340,0.03328451,3755.5,3754.7,4.538]
[1753985719546,9.03419165,3755.3,3754.6,0.5652]
[1753985719880,9.03419165,3755.0,3754.2,7.76686137]
[1753985720064,9.03419165,3755.0,3754.2,0.5652]
[1753985720065,2.66325277,3754.9,3754.2,0.5652]
[1753985720268,4.0233267,3755.5,3754.5,2.66346338]
[1753985720453,2.66275197,3755.6,3754.6,1.0368]
[1753985720656,2.66275197,3755.6,3754.0,3.0]
[1753985720657,4.537,3755.5,3754.9,2.6631361]
[1753985720870,0.55,3755.9,3754.8,3.22842836]
[1753985721183,4.537,3755.8,3755.0,2.66310918]
[1753985721346,2.66282465,3755.5,3754.6,7.76558924]
[1753985721683,1.22470163,3755.4,3754.7,0.5652]
[1753985721883,2.66221404,3756.3,3754.7,0.5652]
[1753985721884,9.30209165,3756.6,3754.7,1.0368]
[1753985722047,6.393,3757.8,3754.7,1.0368]
[1753985722048,0.6731,3757.0,3754.9,0.1328]
[1753985722245,0.1328,3755.6,3755.0,4.0368]
[1753985722456,0.1328,3755.6,3755.5,2.66276128]
[1753985722882,0.1328,3755.6,3755.5,3.69956128]
[1753985723772,0.1328,3755.6,3755.5,1.0368]
[1753985723974,0.1328,3755.6,3755.4,4.536]
[1753985724176,0.2679,3756.4,3755.4,4.536]
[1753985724177,0.1328,3755.5,3755.4,4.536]
[1753985724553,0.1328,3755.5,3755.4,8.23563218]
[1753985725275,0.2679,3756.9,3755.4,8.23563218]
[1753985725276,4.535,3756.6,3755.4,6.66265507]
[1753985725602,0.1328,3755.8,3755.5,0.5652]
[1753985725896,4.56827476,3756.6,3755.3,2.66289504]
[1753985725897,2.66236549,3756.1,3755.3,2.66289504]
[1753985726254,2.66227316,3756.2,3755.4,0.5652]
[1753985726485,2.66234162,3756.1,3755.4,0.5652]
[1753985726654,0.1328,3755.5,3755.4,3.22802697]
[1753985726976,0.1328,3755.5,3755.1,3.0]
[1753985727165,0.1328,3755.3,3755.1,5.0982]
[1753985727517,0.1328,3755.3,3755.1,4.533]
[1753985727792,0.1328,3755.3,3755.2,0.5652]
[1753985728370,2.79570309,3755.3,3754.7,4.533]
[1753985728565,2.66297918,3755.2,3754.9,0.5652]
[1753985728765,0.1328,3755.3,3754.7,4.533]
[1753985728766,0.1328,3754.9,3754.7,4.533]
[1753985728986,0.1328,3754.9,3754.8,2.66325769]
[1753985729407,0.1328,3754.9,3754.8,3.70005769]
[1753985729621,0.4052,3756.6,3754.9,2.66318589]
[1753985729923,0.1328,3755.5,3755.0,1.1696]
[1753985730073,2.66262586,3755.7,3755.1,1.0368]
[1753985730414,2.66257394,3755.8,3755.2,4.531]
[1753985730593,0.1328,3755.3,3755.2,4.531]
[1753985730778,0.1328,3755.3,3755.2,5.5678]
[1753985732407,0.1328,3755.3,3755.2,5.0962]
[1753985733434,0.1328,3755.3,3755.2,4.531]
[1753985733572,0.1328,3755.3,3755.2,5.0962]
[1753985733777,0.2429025,3756.0,3755.5,2.66275551]
[1753985733970,6.393,3757.8,3755.6,9.8258]
[1753985734171,0.1328,3756.4,3755.8,0.1328]
[1753985734374,9.03419165,3756.9,3755.9,5.5648]
[1753985734716,2.66148564,3757.3,3755.9,5.5648]
[1753985734717,2.6619207,3756.7,3756.0,0.5652]
[1753985734871,0.24325297,3756.6,3756.0,2.11392815]
[1753985735072,0.24325297,3756.5,3756.1,0.5652]
[1753985735287,0.24325297,3756.4,3756.2,0.5652]
[1753985735527,2.66155647,3757.2,3756.3,4.528]
[1753985735737,2.6621233,3756.4,3756.3,4.528]
[1753985735936,3.03854342,3756.4,3755.9,1.0368]
[1753985736226,0.1328,3756.1,3756.0,5.0922]
[1753985736427,0.37642012,3756.1,3756.0,5.0922]
[1753985736639,0.37642012,3756.1,3756.0,5.5638]
[1753985736796,0.37642012,3756.1,3756.0,9.31509495]
[1753985736998,0.37642012,3756.1,3756.0,6.65168814]
[1753985737396,0.37642012,3756.1,3756.0,4.526]
[1753985737598,3.03875605,3756.1,3756.0,4.526]
[1753985737923,0.37642012,3756.1,3756.0,4.526]
[1753985738088,3.03875605,3756.1,3756.0,4.526]
[1753985738288,3.03875605,3756.1,3755.7,0.5652]
[1753985738289,0.37642012,3756.1,3755.7,0.5652]
[1753985738490,0.37642012,3756.1,3755.5,0.4716]
[1753985738491,2.90605085,3756.0,3755.8,4.525]
[1753985738691,0.24362012,3755.9,3755.8,10.64004859]
[1753985738993,0.1328,3756.9,3756.2,0.55]
[1753985739318,0.1328,3757.3,3756.5,2.66198618]
[1753985739497,0.24441526,3757.2,3756.6,9.3492]
[1753985739692,0.1328,3756.8,3756.7,4.524]
[1753985740531,2.79463986,3756.8,3756.7,4.524]
[1753985740829,0.1328,3756.8,3756.7,4.524]
[1753985741126,0.1328,3756.8,3756.4,4.8252]
[1753985741127,2.661915,3756.7,3756.4,4.8252]
[1753985741329,2.66198157,3756.6,3756.5,4.523]
[1753985741531,2.66200171,3756.6,3756.5,4.523]
[1753985741835,2.79480171,3756.6,3756.5,4.523]
[1753985741989,3.03954234,3756.6,3756.5,4.523]
[1753985742210,0.37754063,3756.6,3756.5,5.5598]
[1753985742496,3.0395222,3756.6,3756.5,5.0882]
[1753985742692,3.0395222,3756.6,3756.4,4.26]
[1753985742922,0.24474063,3756.5,3756.4,4.8252]
[1753985743139,2.90679307,3756.5,3756.4,4.521]
[1753985743339,2.66233593,3756.1,3756.0,0.5652]
[1753985743490,0.1328,3756.1,3755.9,4.26]
[1753985743693,0.1328,3756.1,3756.0,0.5652]
[1753985743892,0.1328,3756.1,3756.0,5.0862]
[1753985744123,0.1328,3756.1,3756.0,5.5578]
[1753985744346,2.66206423,3756.5,3756.0,6.53958]
[1753985744517,0.1328,3756.3,3756.1,1.0368]
[1753985744712,0.1328,3756.3,3756.1,0.4716]
[1753985745037,2.66230935,3756.2,3756.0,4.521]
[1753985745187,2.66240681,3756.0,3755.9,4.26]
[1753985745388,2.66240681,3756.0,3755.9,8.78]
[1753985745389,2.79520681,3756.0,3755.9,8.78]
[1753985745626,0.1328,3756.0,3755.9,8.78]
[1753985745804,2.79520681,3756.0,3755.9,8.78]
[1753985745991,0.1328,3756.0,3755.9,8.78]
[1753985746195,2.79520681,3756.0,3755.9,9.3452]
[1753985746418,2.79520681,3756.0,3755.9,8.78]
[1753985746824,0.1328,3756.0,3755.9,8.78]
[1753985747020,0.1328,3756.0,3755.9,9.3238]
[1753985747429,0.1328,3756.0,3755.9,9.7976]
[1753985748138,2.90699284,3756.4,3755.9,10.77736]
[1753985748296,0.1328,3756.1,3756.0,1.0176]
[1753985748497,2.66213367,3756.4,3756.0,1.0176]
[1753985748717,0.37774799,3756.3,3756.1,5.5346]
[1753985749094,0.37774799,3756.3,3756.1,4.9908]
[1753985749095,2.66226505,3756.2,3756.1,4.9908]
[1753985749361,0.1328,3756.3,3756.1,9.2508]
[1753985749524,0.1328,3756.3,3756.1,8.777]
[1753985749724,2.79499702,3756.3,3756.2,0.5438]
[1753985749925,3.03997502,3756.3,3756.2,0.5438]
[1753985750239,2.66226505,3756.2,3756.1,4.26]
[1753985750440,2.66226505,3756.2,3756.1,8.776]
[1753985750745,2.90739395,3756.2,3756.1,8.776]
[1753985751040,0.1328,3756.3,3756.1,8.776]
[1753985751204,0.1328,3756.3,3756.2,1.0176]
[1753985751742,2.66203492,3756.6,3756.2,1.0176]
[1753985751908,2.66203492,3756.6,3756.1,8.776]
[1753985751909,0.1328,3756.3,3756.1,4.26]
[1753985752112,0.1328,3756.3,3756.2,4.515]
[1753985753000,2.79499418,3756.3,3756.2,5.0588]
[1753985753443,2.79499418,3756.3,3756.2,5.0578]
[1753985753740,3.28563722,3756.3,3756.2,4.513]
[1753985753939,3.28563722,3756.3,3756.0,4.513]
[1753985753940,2.66239382,3756.1,3756.0,4.513]
[1753985754294,2.66236243,3756.1,3756.0,4.513]
[1753985754441,2.66224395,3756.3,3756.0,5.0568]
[1753985754602,0.1328,3756.1,3756.0,4.9868]
[1753985754806,0.1328,3756.1,3756.0,4.513]
[1753985755341,2.79513593,3756.1,3755.6,1.0176]
[1753985755652,2.6623438,3756.1,3755.7,4.512]
[1753985755805,2.66254859,3755.8,3755.5,4.261]
[1753985756007,0.1328,3755.7,3755.6,4.512]
[1753985756816,0.1328,3755.7,3755.6,5.0558]
[1753985757338,0.1328,3755.7,3755.6,6.28758]
[1753985757525,0.1328,3756.0,3755.6,6.76138]
[1753985757705,0.1328,3756.0,3755.6,4.512]
[1753985758046,0.1328,3756.0,3755.7,1.0176]
[1753985758253,0.1328,3756.0,3755.8,4.51]
[1753985758423,0.002,3756.6,3755.8,4.51]
[1753985758424,2.6624777,3755.9,3755.8,4.51]
[1753985758756,0.1328,3755.9,3755.8,5.0538]
[1753985759846,2.7952777,3755.9,3755.8,4.51]
[1753985760051,3.34104047,3755.9,3755.8,4.51]
[1753985760228,2.66269038,3755.6,3755.5,0.001]
[1753985760424,2.79549038,3755.6,3755.5,4.509]
[1753985763731,0.1328,3755.6,3755.5,5.0528]
[1753985763941,0.1328,3755.6,3755.5,5.5266]
[1753985764147,0.1328,3755.6,3755.5,8.18936128]
[1753985764361,0.002,3756.0,3755.5,8.18936128]
[1753985764362,0.1328,3755.9,3755.5,13.69431811]
[1753985764519,0.1328,3755.9,3755.8,2.66254859]
[1753985764719,0.002,3756.0,3755.8,4.505]
[1753985764920,0.002,3756.0,3755.9,0.5438]
[1753985765470,0.002,3756.0,3755.9,3.2062777]
[1753985765636,0.002,3756.0,3755.9,3.6800777]
[1753985765973,0.1348,3756.0,3755.9,1.0176]
[1753985766531,2.79720681,3756.0,3755.9,0.5438]
[1753985766924,0.1348,3756.0,3755.8,4.505]
[1753985767274,0.1348,3756.0,3755.5,4.8048]
[1753985767472,0.1348,3756.0,3755.6,4.503]
[1753985767473,2.66250089,3755.9,3755.6,4.503]
[1753985767643,2.66264201,3755.7,3755.6,4.503]
[1753985767828,2.79544201,3755.7,3755.6,4.503]
[1753985768025,2.79544122,3755.7,3755.6,4.503]
[1753985768262,2.79544122,3755.7,3755.6,5.0468]
[1753985768263,0.1328,3755.7,3755.6,5.0468]
[1753985768459,0.1328,3755.7,3755.6,5.5206]
[1753985768781,0.1328,3755.7,3755.6,6.76504107]
[1753985768930,0.1328,3755.7,3755.6,5.5206]
[1753985770007,0.1328,3755.7,3755.6,9.3068]
[1753985770540,2.79528493,3755.9,3755.6,9.7806]
[1753985770870,2.66256431,3755.8,3755.7,0.5438]
[1753985771263,2.66261948,3755.7,3755.6,4.26]
[1753985771465,2.66261948,3755.7,3755.6,8.761]
[1753985771680,3.19532958,3755.7,3755.6,4.26]
[1753985771851,3.19532958,3755.7,3755.6,4.5]
[1753985772439,2.66261948,3755.7,3755.6,4.5]
[1753985772760,2.66269038,3755.6,3755.5,0.001]
[1753985772959,2.66269038,3755.6,3755.5,4.5]
[1753985773189,3.24879038,3755.6,3755.5,4.5]
[1753985773700,3.24879038,3755.6,3755.5,0.001]
[1753985773903,4.29292731,3755.6,3755.5,0.001]
[1753985774773,4.74622731,3755.6,3755.5,0.001]
[1753985775292,5.00781093,3755.6,3755.5,0.001]
[1753985775479,5.25336564,3755.6,3755.5,0.001]
[1753985775704,4.97452731,3755.6,3755.5,0.001]
[1753985776004,4.99178032,3755.6,3755.5,1e-08]
[1753985776184,4.29292731,3755.6,3755.5,1e-08]
[1753985776383,4.76731093,3755.6,3755.5,1e-08]
[1753985776566,4.97950504,3755.6,3755.5,1e-08]
[1753985776766,5.01278866,3755.6,3755.5,1e-08]
[1753985776970,4.29292731,3755.6,3755.5,1e-08]
[1753985777168,2.79549038,3755.6,3755.5,1e-08]
[1753985777364,2.79549038,3755.6,3755.5,0.54220001]
[1753985778692,2.79549038,3755.6,3755.5,1e-08]
[1753985778894,3.23659038,3755.6,3755.5,1e-08]
[1753985779070,3.04082284,3755.6,3755.5,1e-08]
[1753985779279,5.06801156,3755.6,3755.5,1e-08]
[1753985779696,5.31335071,3755.6,3755.5,1e-08]
[1753985779898,8.99576709,3755.6,3755.5,1e-08]
[1753985780224,2.66370844,3754.2,3754.0,5.0362]
[1753985780415,0.55,3755.2,3753.7,0.4705]
[1753985780416,2.93012513,3754.1,3753.7,0.4705]
[1753985780586,2.6635503,3754.4,3753.6,3.0]
[1753985780587,2.66370539,3754.2,3753.8,4.493]
[1753985780906,0.1336,3753.7,3753.5,0.4705]
[1753985781109,0.1336,3753.7,3753.6,5.5057]
[1753985781323,0.1336,3753.7,3753.6,4.9635]
[1753985781510,3.0,3755.5,3753.7,2.66403144]
[1753985781511,0.1328,3754.2,3753.7,2.66403144]
[1753985781715,0.1328,3754.2,3753.8,1.0127]
[1753985782013,0.1328,3754.2,3753.9,2.66388451]
[1753985782173,0.1328,3754.2,3753.8,2.66393899]
[1753985782378,0.1328,3754.2,3754.0,1.0127]
[1753985782573,0.1328,3754.2,3754.1,4.493]
[1753985782777,0.1328,3754.2,3754.1,5.5057]
[1753985783588,0.1328,3754.2,3754.1,5.5047]
[1753985783999,0.1328,3754.2,3754.1,1.0127]
[1753985784350,0.1328,3754.2,3754.1,4.04411943]
[1753985784501,0.1328,3754.5,3754.4,2.66353854]
[1753985784697,0.1328,3754.5,3754.4,8.16723854]
[1753985785018,2.66283831,3755.4,3754.5,2.66346319]
[1753985785019,0.1328,3754.9,3754.5,2.66346319]
[1753985785425,0.1328,3754.9,3754.8,2.66325769]
[1753985785614,0.1328,3754.9,3754.8,7.15325769]
[1753985785817,0.1328,3754.9,3754.8,5.0322]
[1753985785994,0.1328,3754.9,3754.8,5.5027]
[1753985787235,0.1328,3754.9,3754.8,8.16595769]
[1753985787728,0.1328,3755.6,3755.4,2.66277839]
[1753985787885,0.1328,3755.6,3755.5,5.5017]
[1753985788223,0.1328,3755.6,3755.5,5.5007]
[1753985788796,0.1328,3755.6,3755.5,5.0302]
[1753985788994,0.1328,3755.6,3755.5,5.5007]
[1753985789202,0.1328,3755.8,3755.5,5.5007]
[1753985789422,0.1328,3755.8,3755.6,1.0127]
[1753985789622,0.1328,3755.8,3755.6,0.5422]
[1753985789842,2.66290309,3755.3,3755.2,0.1328]
[1753985790046,3.10400309,3755.3,3755.2,0.1328]
[1753985790344,2.66346994,3754.6,3754.4,4.487]
[1753985790538,2.66344659,3754.6,3754.3,0.001]
[1753985790824,11.85930091,3754.4,3754.3,0.001]
[1753985790987,3.0,3754.3,3752.7,0.27272884]
[1753985791187,3.0,3754.3,3751.5,0.803973]
[1753985791188,2.66454258,3753.0,3752.1,0.5422]
[1753985791388,9.06295947,3753.6,3752.2,4.486]
[1753985791389,2.66482357,3752.6,3752.2,4.486]
[1753985791614,9.06295947,3753.0,3752.2,4.486]
[1753985791883,2.66472509,3752.8,3752.2,4.486]
[1753985792085,0.7184755,3752.8,3751.9,0.5422]
[1753985792324,9.06295947,3752.5,3751.5,0.5462]
[1753985792512,9.06295947,3752.5,3751.5,0.004]
[1753985792712,2.66531623,3751.9,3751.5,0.004]
[1753985792912,0.4411,3752.4,3751.5,0.5462]
[1753985793229,0.208,3752.7,3751.8,0.5462]
[1753985793524,2.6649128,3752.5,3751.8,0.5462]
[1753985793730,1.0967032,3752.6,3751.9,4.484]
[1753985793902,2.66481905,3752.6,3751.9,4.484]
[1753985794098,0.4411,3753.2,3752.1,2.66516174]
[1753985794337,2.66441487,3753.2,3752.4,2.66490645]
[1753985794506,5.05843216,3753.6,3752.2,0.5422]
[1753985794507,2.664475,3753.1,3752.2,0.5422]
[1753985794705,2.66435009,3753.3,3752.5,2.66482373]
[1753985794885,0.26643501,3753.2,3752.5,7.69106815]
[1753985795120,0.4411,3753.6,3752.6,2.66475344]
[1753985795121,2.66428445,3753.4,3752.6,2.66475344]
[1753985795317,0.4411,3754.0,3752.7,0.5422]
[1753985795742,2.66389621,3753.9,3753.0,2.66448196]
[1753985796058,2.66373692,3754.2,3753.3,2.66425388]
[1753985796345,0.4411,3754.5,3753.4,0.5422]
[1753985796644,3.40848863,3754.4,3753.5,4.483]
[1753985796853,0.4411,3754.5,3753.6,2.66410912]
[1753985797003,2.66330904,3754.8,3754.0,2.66380979]
[1753985797201,2.66320785,3754.9,3754.1,0.5422]
[1753985797403,0.6491,3755.5,3754.2,4.483]
[1753985797744,0.4411,3755.5,3754.3,0.5422]
[1753985798137,7.27793185,3755.8,3754.3,3.2057593]
[1753985798317,2.66314558,3755.0,3754.3,3.20579629]
[1753985798497,2.66291213,3755.3,3754.3,3.20579629]
[1753985798498,2.662974,3755.2,3754.4,2.66352163]
[1753985798730,2.66299145,3755.2,3754.5,3.20560405]
[1753985798938,2.66306793,3755.1,3754.5,0.5422]
[1753985799141,1.4730997,3755.7,3754.5,0.5422]
[1753985799351,2.79631704,3755.8,3754.5,0.5422]
[1753985799352,2.66298263,3755.2,3754.5,3.2056615]
[1753985799558,2.66276128,3755.5,3754.5,0.5422]
[1753985799767,0.4411,3755.3,3754.1,0.4705]
[1753985799934,2.66339956,3754.6,3754.0,0.5422]
[1753985800255,2.66342154,3754.6,3754.1,4.481]
[1753985800647,2.66327361,3754.8,3754.2,0.5422]
[1753985800951,6.79996512,3755.3,3754.2,0.5422]
[1753985800952,3.24010524,3754.7,3754.2,0.5422]
[1753985801151,0.1328,3754.3,3754.2,0.5422]
[1753985801361,0.1328,3754.3,3754.2,5.0222]
[1753985802058,2.79641239,3754.3,3754.1,0.001]
[1753985802222,2.69697938,3754.2,3754.1,0.001]
[1753985802418,2.94666128,3754.2,3754.1,0.001]
[1753985802858,0.28297794,3754.2,3754.1,0.001]
[1753985803176,0.1328,3754.2,3754.1,0.5432]
[1753985803322,0.1328,3754.2,3754.1,1.0137]
[1753985803523,2.79648334,3754.2,3754.1,0.001]
[1753985803730,0.1328,3754.2,3754.1,0.001]
[1753985803954,0.1328,3754.2,3754.1,1.0137]
[1753985804143,0.1328,3754.2,3754.1,0.5432]
[1753985804652,0.1328,3754.2,3754.1,1.0137]
[1753985805878,0.1328,3754.7,3754.1,1.96205503]
[1753985806037,0.002,3756.0,3754.1,1.96205503]
[1753985806038,2.66259997,3755.8,3755.1,2.66302647]
[1753985806377,0.002,3756.0,3755.2,5.4351]
[1753985806679,0.002,3756.0,3755.6,2.66266478]
[1753985806680,0.1328,3755.7,3755.6,2.66266478]
[1753985806994,0.1348,3755.9,3755.6,0.9591]
[1753985807195,0.1348,3755.9,3755.7,0.5227]
[1753985807196,0.002,3755.9,3755.7,0.5227]
[1753985807374,0.002,3755.9,3755.7,5.4341]
[1753985807570,0.002,3755.9,3755.8,0.5227]
[1753985807775,0.002,3755.6,3755.2,0.1328]
[1753985807973,0.002,3755.6,3755.3,4.475]
[1753985808179,0.1328,3755.4,3755.3,4.9977]
[1753985808385,0.1328,3755.4,3755.3,5.4341]
[1753985808772,0.1328,3755.4,3755.3,5.4331]
[1753985809165,0.002,3755.6,3755.5,2.66276128]
[1753985809596,0.002,3755.6,3755.5,2.79556128]
[1753985809796,0.002,3755.6,3755.5,8.22766128]
[1753985810163,0.002,3755.6,3755.5,8.09486128]
[1753985810889,0.002,3755.6,3755.5,8.09386128]
[1753985811090,0.002,3755.6,3755.5,5.4311]
[1753985811302,0.002,3755.6,3755.2,0.5227]
[1753985811476,2.66290309,3755.3,3754.8,0.5227]
[1753985811797,3.09869781,3755.5,3755.1,4.472]
[1753985811989,0.1328,3755.2,3755.1,4.472]
[1753985812194,2.795774,3755.2,3755.1,4.472]
[1753985812587,0.002,3755.6,3755.5,2.66276128]
[1753985812790,0.002,3755.6,3755.5,7.13376128]
[1753985812975,0.002,3755.9,3755.8,2.66254859]
[1753985813189,0.002,3755.9,3755.8,3.75135697]
[1753985813417,0.002,3755.9,3755.8,4.71045697]
[1753985813777,0.002,3755.9,3755.8,7.71045697]
[1753985814098,0.002,3755.9,3755.8,7.84325697]
[1753985814299,0.002,3755.9,3755.8,12.31225697]
[1753985815081,0.002,3755.9,3755.8,12.31125697]
[1753985815782,0.002,3755.9,3755.8,7.84325697]
[1753985816020,0.002,3755.9,3755.8,9.64770838]
[1753985816220,0.002,3755.9,3755.8,12.31025697]
[1753985816381,0.002,3755.9,3755.8,12.86025697]
[1753985816580,0.002,3756.6,3755.8,12.86025697]
[1753985816581,0.002,3756.6,3756.3,2.66213984]
[1753985816806,2.66136076,3757.5,3756.6,2.66198157]
[1753985817018,0.002,3757.7,3756.6,2.66198157]
[1753985817019,0.1328,3757.1,3756.9,2.66175375]
[1753985817196,0.1328,3757.1,3757.0,4.9887]
[1753985819110,0.1328,3757.1,3757.0,0.5227]
[1753985819310,0.1328,3757.1,3757.0,4.9877]
[1753985819525,2.66169816,3757.0,3756.6,4.26]
[1753985819736,2.66191071,3756.7,3756.6,4.26]
[1753985819908,2.66198157,3756.6,3756.5,0.1328]
[1753985820107,0.4359,3756.9,3756.5,0.1328]
[1753985820108,2.66184943,3756.8,3756.5,4.464]
[1753985820304,0.002,3757.7,3756.6,0.5227]
[1753985820623,0.002,3757.7,3756.7,0.4364]
[1753985820818,0.002,3757.7,3757.6,5.66127315]
[1753985821043,0.002,3757.7,3757.6,10.25707315]
[1753985821340,0.002,3757.7,3757.6,11.21617315]
[1753985821492,0.002,3757.7,3757.6,11.76617315]
[1753985821719,0.002,3757.7,3757.6,11.08337315]
[1753985821895,0.002,3757.7,3757.6,7.8994]
[1753985822109,0.002,3757.7,3757.6,11.08337315]
[1753985822307,0.002,3757.7,3757.6,7.462]
[1753985822651,0.002,3757.7,3757.6,7.9847]
[1753985822814,6.93449339,3759.6,3757.6,7.9847]